bitfinex/quotes_BTCUSD_20250118
["timestamp","ask_amount","ask_price","bid_price","bid_amount"]
[1737237651385,0.80316235,103920.0,103900.0,0.60927644]
[1737237651777,0.61069835,103920.0,103900.0,0.60927644]
[1737237651996,0.61069835,103920.0,103910.0,0.096237]
[1737237652200,0.524975,103920.0,103900.0,0.70551944]
[1737237652425,1.0172159,103930.0,103910.0,0.10367449]
[1737237652653,0.00548,103920.0,103910.0,0.3953703]
[1737237652855,1.0172149,103930.0,103920.0,0.096227]
[1737237653052,0.8902149,103930.0,103920.0,0.096227]
[1737237653261,0.50378887,103930.0,103920.0,0.09929957]
[1737237653804,0.50378887,103930.0,103920.0,0.11726032]
[1737237654146,0.50378887,103930.0,103920.0,0.02103332]
[1737237654347,0.28948049,103930.0,103920.0,0.02103332]
[1737237656029,0.28948049,103930.0,103920.0,0.0253939]
[1737237656459,0.28948049,103930.0,103920.0,0.1216209]
[1737237657033,0.28948049,103930.0,103920.0,0.12463097]
[1737237657462,0.28948049,103930.0,103920.0,0.02840397]
[1737237657704,0.28890776,103930.0,103920.0,0.02840397]
[1737237658852,0.28890776,103930.0,103920.0,0.12463097]
[1737237659669,0.28890776,103930.0,103920.0,0.02840397]
[1737237662673,0.37463111,103930.0,103920.0,0.12463097]
[1737237664487,0.37463111,103930.0,103920.0,0.02840397]
[1737237664937,0.50321614,103930.0,103920.0,0.02840397]
[1737237666053,0.67466285,103930.0,103920.0,0.02840397]
[1737237666409,0.48221785,103930.0,103920.0,0.12463097]
[1737237667279,0.38599285,103930.0,103920.0,0.22387178]
[1737237667616,0.38599285,103930.0,103920.0,0.30007178]
[1737237668934,0.38599285,103930.0,103920.0,0.29706171]
[1737237669092,0.00023776,103930.0,103920.0,0.29706171]
[1737237670041,0.00023776,103930.0,103920.0,0.32586168]
[1737237670644,0.00023776,103930.0,103920.0,0.32628938]
[1737237671465,0.00023776,103930.0,103920.0,0.3360578]
[1737237671892,0.00023776,103930.0,103920.0,0.32628938]
[1737237672044,0.20326138,103930.0,103920.0,0.05462157]
[1737237672254,0.33136408,103930.0,103920.0,0.05382628]
[1737237672455,0.33016138,103930.0,103920.0,0.05382628]
[1737237672668,0.22883576,103930.0,103920.0,0.05382628]
[1737237672868,0.33564138,103930.0,103920.0,0.05382628]
[1737237673255,0.43488219,103930.0,103920.0,0.02502631]
[1737237673446,0.33564138,103930.0,103920.0,0.02502631]
[1737237673769,0.48564138,103930.0,103920.0,0.02803647]
[1737237673981,0.58564138,103930.0,103920.0,0.02803647]
[1737237674187,0.97139647,103930.0,103920.0,0.02803647]
[1737237674814,0.97139647,103930.0,103920.0,0.02502631]
[1737237675281,0.97206741,103930.0,103920.0,0.02502631]
[1737237675482,0.97206741,103930.0,103920.0,0.00706556]
[1737237675934,0.98150499,103930.0,103920.0,0.00706556]
[1737237676064,0.90929909,103930.0,103920.0,0.00706556]
[1737237676843,0.81005828,103930.0,103920.0,0.00706556]
[1737237677042,1.06867899,103930.0,103920.0,0.00706556]
[1737237680216,1.2679198,103930.0,103920.0,0.00706556]
[1737237680826,1.05294048,103930.0,103920.0,0.00706556]
[1737237681042,1.05294048,103930.0,103920.0,0.00692081]
[1737237681257,1.18198691,103930.0,103920.0,0.00692081]
[1737237681681,1.08198691,103930.0,103920.0,0.00692081]
[1737237682239,1.08198691,103930.0,103920.0,0.0004277]
[1737237682892,1.27577906,103930.0,103920.0,0.0014277]
[1737237683092,0.296237,103910.0,103900.0,0.0004277]
[1737237683298,0.62918343,103910.0,103900.0,0.00719193]
[1737237683990,0.62918343,103910.0,103900.0,0.00461624]
[1737237684195,0.62918343,103910.0,103900.0,0.00622723]
[1737237684400,0.88649721,103910.0,103900.0,0.00622723]
[1737237684701,0.88749721,103910.0,103900.0,0.00622723]
[1737237687044,0.90847809,103910.0,103900.0,0.00622723]
[1737237688687,0.83147809,103910.0,103900.0,0.00622723]
[1737237689220,0.84132564,103910.0,103900.0,0.00622723]
[1737237691667,0.80282476,103910.0,103900.0,0.00622723]
[1737237692071,0.90282476,103910.0,103900.0,0.00622723]
[1737237692732,0.85978943,103910.0,103900.0,0.00622723]
[1737237693323,1.03119074,103910.0,103900.0,0.00622723]
[1737237693700,1.03119074,103910.0,103900.0,0.00665493]
[1737237694380,0.82134319,103910.0,103900.0,0.00665493]
[1737237694580,0.69297721,103910.0,103900.0,0.00665493]
[1737237695011,0.5937364,103910.0,103900.0,0.00665493]
[1737237695215,0.4668364,103910.0,103900.0,0.00665493]
[1737237695432,0.33257604,103910.0,103900.0,0.00665493]
[1737237695638,0.33805604,103910.0,103900.0,0.00665493]
[1737237696249,0.57374806,103910.0,103900.0,0.00665493]
[1737237697189,0.57274806,103910.0,103900.0,0.00665493]
[1737237697393,0.57374806,103910.0,103900.0,0.00665493]
[1737237698220,0.57274806,103910.0,103900.0,0.00665493]
[1737237698631,0.57374806,103910.0,103900.0,0.00665493]
[1737237704998,0.57374806,103910.0,103900.0,0.00966579]
[1737237705440,0.46236083,103910.0,103900.0,0.10591179]
[1737237705643,0.46784083,103910.0,103900.0,0.10591179]
[1737237705847,0.33930741,103910.0,103900.0,0.10591179]
[1737237706059,0.33930741,103910.0,103900.0,0.12392479]
[1737237706299,0.08759041,103910.0,103900.0,0.25012479]
[1737237706524,0.08759041,103910.0,103900.0,0.3493656]
[1737237706942,0.08659041,103910.0,103900.0,0.3493656]
[1737237707307,0.08759041,103910.0,103900.0,0.3781753]
[1737237707522,0.08659041,103910.0,103900.0,0.3781753]
[1737237707730,0.08759041,103910.0,103900.0,0.3781753]
[1737237708190,0.00189839,103910.0,103900.0,0.3781753]
[1737237713651,0.00189839,103910.0,103900.0,0.3295753]
[1737237715350,0.00189839,103910.0,103900.0,0.32842847]
[1737237715567,0.00189839,103910.0,103900.0,0.32983962]
[1737237717151,0.00189839,103910.0,103900.0,0.25223962]
[1737237722836,0.00189839,103910.0,103900.0,0.48354524]
[1737237723047,0.00089839,103910.0,103900.0,0.48354524]
[1737237723473,0.00189839,103910.0,103900.0,0.63354524]
[1737237723724,0.00089839,103910.0,103900.0,0.63354524]
[1737237724126,0.00189839,103910.0,103900.0,0.63354524]
[1737237724329,0.00089839,103910.0,103900.0,0.58672254]
[1737237724487,0.00089839,103910.0,103900.0,0.66352909]
[1737237724688,0.00189839,103910.0,103900.0,0.66352909]
[1737237725356,0.00189839,103910.0,103900.0,0.66051823]
[1737237725914,0.00189839,103910.0,103900.0,0.63053306]
[1737237726115,0.00089839,103910.0,103900.0,0.63053306]
[1737237726433,0.00189839,103910.0,103900.0,0.63053306]
[1737237726696,0.00089839,103910.0,103900.0,0.63053306]
[1737237727102,0.00189839,103910.0,103900.0,0.63053306]
[1737237728333,0.00189839,103910.0,103900.0,0.75353306]
[1737237728537,0.00189839,103910.0,103900.0,0.7835105]
[1737237728738,0.00189839,103910.0,103900.0,0.80250534]
[1737237729541,0.00189839,103910.0,103900.0,0.90250534]
[1737237729742,0.00089839,103910.0,103900.0,0.90250534]
[1737237730195,0.00189839,103910.0,103900.0,0.90250534]
[1737237730602,0.00289839,103910.0,103900.0,1.77480534]
[1737237732857,0.00023776,103930.0,103920.0,0.399827]
[1737237733089,0.00023776,103930.0,103920.0,1.68497905]
[1737237733286,0.00023776,103930.0,103920.0,1.82162566]
[1737237733732,0.00023776,103930.0,103920.0,1.86844704]
[1737237734290,0.00123776,103930.0,103920.0,1.86844704]
[1737237735143,0.00123776,103930.0,103920.0,1.56164142]
[1737237735365,0.001288,103930.0,103920.0,1.5318358]
[1737237735611,0.000288,103930.0,103920.0,1.50188601]
[1737237735900,0.000288,103930.0,103920.0,1.35428601]
[1737237737072,0.000288,103930.0,103920.0,0.80568601]
[1737237737269,0.000288,103930.0,103920.0,0.81510966]
[1737237738367,0.000288,103930.0,103920.0,0.25840966]
[1737237741549,0.050188,103930.0,103920.0,0.24898601]
[1737237749623,0.050188,103930.0,103920.0,0.24707091]
[1737237752756,0.050188,103930.0,103920.0,0.47867653]
[1737237752757,0.000288,103930.0,103920.0,0.47867653]
[1737237753170,0.000288,103930.0,103920.0,0.37187091]
[1737237754621,0.000288,103930.0,103920.0,0.85167653]
[1737237754831,0.000288,103930.0,103920.0,0.98927402]
[1737237755038,0.000288,103930.0,103920.0,1.86075677]
[1737237756090,0.000288,103930.0,103920.0,1.75395115]
[1737237757212,0.000288,103930.0,103920.0,1.31215677]
[1737237757393,0.000288,103930.0,103920.0,1.31293195]
[1737237757598,0.000288,103930.0,103920.0,1.20533532]
[1737237758214,0.000288,103930.0,103920.0,1.20612633]
[1737237759967,0.000288,103930.0,103920.0,1.10612633]
[1737237760184,0.000288,103930.0,103920.0,0.92952071]
[1737237760384,0.000288,103930.0,103920.0,0.93632633]
[1737237760593,0.000288,103930.0,103920.0,1.13553532]
[1737237760796,0.000288,103930.0,103920.0,1.13632633]
[1737237761008,0.000288,103930.0,103920.0,1.15932633]
[1737237761641,0.000288,103930.0,103920.0,1.05932633]
[1737237761869,0.000288,103930.0,103920.0,1.15932633]
[1737237762081,0.000288,103930.0,103920.0,0.95252071]
[1737237762287,0.000288,103930.0,103920.0,0.85252071]
[1737237762870,0.000288,103930.0,103920.0,0.75152071]
[1737237766879,0.000288,103930.0,103920.0,0.72152628]
[1737237767048,0.000288,103930.0,103920.0,0.39782628]
[1737237768494,0.000288,103930.0,103920.0,0.39703732]
[1737237768853,0.000288,103930.0,103920.0,0.42704293]
[1737237769082,0.000288,103930.0,103920.0,0.39703732]
[1737237769884,0.000288,103930.0,103920.0,0.42704673]
[1737237772106,0.000288,103930.0,103920.0,0.39703732]
[1737237772514,0.000288,103930.0,103920.0,0.42704981]
[1737237774533,0.000288,103930.0,103920.0,0.53385543]
[1737237777753,0.000288,103930.0,103920.0,0.65685543]
[1737237779008,0.000288,103930.0,103920.0,1.52915543]
[1737237780673,0.000288,103930.0,103920.0,1.42234981]
[1737237781145,0.000288,103930.0,103920.0,1.52915543]
[1737237781388,0.000288,103930.0,103920.0,1.6063509]
[1737237781626,0.000288,103930.0,103920.0,1.60555896]
[1737237783270,0.000288,103930.0,103920.0,1.32235334]
[1737237784685,0.000288,103930.0,103920.0,1.29935334]
[1737237786951,0.000288,103930.0,103920.0,1.25253196]
[1737237787348,0.000288,103930.0,103920.0,1.29941077]
[1737237789549,0.082688,103930.0,103920.0,1.29941077]
[1737237792492,0.082688,103930.0,103920.0,0.60081077]
[1737237792711,0.132188,103930.0,103920.0,0.57079828]
[1737237796977,0.132188,103930.0,103920.0,0.24709828]
[1737237802911,0.132188,103930.0,103920.0,0.2501081]
[1737237803047,0.21788002,103930.0,103920.0,0.2501081]
[1737237803927,0.132188,103930.0,103920.0,0.24709828]
[1737237804721,0.049788,103930.0,103920.0,0.24709828]
[1737237806356,0.000288,103930.0,103920.0,0.24709828]
[1737237813086,0.125288,103930.0,103920.0,0.24709828]
[1737237813346,0.1,103920.0,103910.0,0.0004278]
[1737237813464,0.64152137,103920.0,103910.0,0.0004278]
[1737237813666,0.67256611,103920.0,103910.0,0.0004278]
[1737237814099,0.63955905,103920.0,103910.0,0.0004278]
[1737237814721,1.37346904,103920.0,103910.0,0.0004278]
[1737237814937,0.375,103910.0,103900.0,6.69e-05]
[1737237815150,0.57804262,103910.0,103900.0,6.69e-05]
[1737237816584,0.79273181,103910.0,103900.0,6.69e-05]
[1737237817119,0.89197262,103910.0,103900.0,6.69e-05]
[1737237817294,0.368955,103890.0,103880.0,0.0196263]
[1737237817499,0.58804624,103890.0,103880.0,0.0196263]
[1737237817911,0.48124062,103890.0,103880.0,0.0166152]
[1737237818437,0.86716255,103890.0,103880.0,0.0166152]
[1737237818646,0.86721276,103890.0,103880.0,0.0166152]
[1737237819440,0.6956919,103890.0,103880.0,0.0166152]
[1737237820330,0.56705126,103890.0,103880.0,0.0166152]
[1737237821047,0.56705126,103890.0,103880.0,0.02050968]
[1737237821912,0.48129083,103890.0,103880.0,0.02050968]
[1737237822278,0.58809645,103890.0,103880.0,0.02050968]
[1737237831676,0.68809645,103890.0,103880.0,0.02050968]
[1737237831891,0.78733726,103890.0,103880.0,0.02050968]
[1737237832093,0.68809645,103890.0,103880.0,0.02050968]
[1737237832986,0.59184145,103890.0,103860.0,0.0997219]
[1737237833295,0.59184145,103890.0,103860.0,0.12059265]
[1737237833296,0.096274,103870.0,103860.0,0.12059265]
[1737237834585,0.20307962,103870.0,103860.0,0.12059265]
[1737237836743,0.20307962,103870.0,103860.0,0.21687565]
[1737237837150,0.20307962,103870.0,103860.0,0.22169316]
[1737237838801,0.10680562,103870.0,103860.0,0.22169316]
[1737237839208,0.20307962,103870.0,103860.0,0.15408289]
[1737237840192,0.20307962,103870.0,103860.0,0.25036589]
[1737237840531,0.20307962,103870.0,103860.0,0.15408289]
[1737237840736,0.20307962,103870.0,103860.0,0.15733408]
[1737237840870,0.20307962,103870.0,103860.0,0.25361708]
[1737237842965,0.20307962,103870.0,103860.0,0.25157654]
[1737237843689,0.69411564,103890.0,103870.0,0.096274]
[1737237843898,0.00552,103880.0,103870.0,0.38805581]
[1737237844329,0.20858962,103880.0,103870.0,0.43464148]
[1737237844537,0.20858962,103880.0,103870.0,0.14582648]
[1737237844958,0.20858962,103880.0,103870.0,0.24210048]
[1737237845161,0.20858962,103880.0,103870.0,0.24992909]
[1737237846741,0.11232562,103880.0,103870.0,0.24992909]
[1737237847093,0.00552,103880.0,103870.0,0.24992909]
[1737237847999,0.00552,103880.0,103870.0,0.44368885]
[1737237848591,0.08055021,103890.0,103870.0,0.53995685]
[1737237848821,0.00557021,103890.0,103880.0,0.19550481]
[1737237849029,0.00557021,103890.0,103880.0,0.19673781]
[1737237849238,0.00557021,103890.0,103880.0,0.20456642]
[1737237850471,0.00557021,103890.0,103880.0,0.25115209]
[1737237854936,0.00646902,103890.0,103880.0,0.25115209]
[1737237862398,0.0059317,103890.0,103880.0,0.25115209]
[1737237866479,0.0004117,103890.0,103880.0,0.25115209]
[1737237866714,0.0059317,103890.0,103880.0,0.25115209]
[1737237866948,0.0059317,103890.0,103880.0,0.25158009]
[1737237872065,0.0004117,103890.0,103880.0,0.25158009]
[1737237872301,0.0059317,103890.0,103880.0,0.25158009]
[1737237873792,0.0004117,103890.0,103880.0,0.62159434]
[1737237873974,0.0004117,103890.0,103880.0,0.60077882]
[1737237874368,0.0004117,103890.0,103880.0,0.63079987]
[1737237874735,0.0004117,103890.0,103880.0,0.62598236]
[1737237874941,0.0004117,103890.0,103880.0,0.57939669]
[1737237875503,0.0004117,103890.0,103880.0,0.6130845]
[1737237875831,0.0004117,103890.0,103880.0,0.61609483]
[1737237876154,0.0004117,103890.0,103880.0,0.55616043]
[1737237876344,0.0004117,103890.0,103880.0,0.52613938]
[1737237877054,0.0004117,103890.0,103880.0,0.45053938]
[1737237877461,0.0004117,103890.0,103880.0,0.25123938]
[1737237877876,0.0004117,103890.0,103880.0,0.25295992]
[1737237878492,0.17366995,103890.0,103880.0,0.25295992]
[1737237878693,0.1724667,103890.0,103880.0,0.25295992]
[1737237878894,0.1724667,103890.0,103880.0,0.2577772]
[1737237879499,0.1779867,103890.0,103880.0,0.2577772]
[1737237880684,0.0817317,103890.0,103880.0,0.2577772]
[1737237881158,0.0762117,103890.0,103880.0,0.2577772]
[1737237881370,0.0817317,103890.0,103880.0,0.2577772]
[1737237881520,0.0004117,103890.0,103880.0,0.2577772]
[1737237881739,0.1021867,103890.0,103880.0,0.2577772]
[1737237882820,0.0059317,103890.0,103880.0,0.2577772]
[1737237883436,0.09169213,103890.0,103880.0,0.2577772]
[1737237884319,0.0059317,103890.0,103880.0,0.2577772]
[1737237886620,0.0817317,103890.0,103880.0,0.2577772]
[1737237886781,0.1779867,103890.0,103880.0,0.2577772]
[1737237887486,0.26374713,103890.0,103880.0,0.2577772]
[1737237888147,0.09165213,103890.0,103880.0,0.2577772]
[1737237892709,0.22029277,103890.0,103880.0,0.2577772]
[1737237894225,0.22029277,103890.0,103880.0,0.25661328]
[1737237894773,0.39181363,103890.0,103880.0,0.25661328]
[1737237901058,0.38633363,103890.0,103880.0,0.25661328]
[1737237901260,0.39181363,103890.0,103880.0,0.25661328]
[1737237901889,0.38633363,103890.0,103880.0,0.25661328]
[1737237902116,0.38633363,103890.0,103880.0,0.62433657]
[1737237902325,0.38633363,103890.0,103880.0,0.72451551]
[1737237902529,0.0004117,103890.0,103880.0,0.82451551]
[1737237902850,0.0004117,103890.0,103880.0,0.81969823]
[1737237903402,0.0004117,103890.0,103880.0,0.78625345]
[1737237906724,0.0004117,103890.0,103880.0,0.80570204]
[1737237907726,0.0004117,103890.0,103880.0,1.67800204]
[1737237909243,0.0004117,103890.0,103880.0,1.88480384]
[1737237909463,0.0004117,103890.0,103880.0,1.77800204]
[1737237910005,0.0004117,103890.0,103880.0,1.99234447]
[1737237910958,0.0004117,103890.0,103880.0,1.89234447]
[1737237911213,0.0004117,103890.0,103880.0,1.99234447]
[1737237911727,0.0004117,103890.0,103880.0,1.77800204]
[1737237913818,0.0004117,103890.0,103880.0,0.90570204]
[1737237921973,7e-07,103890.0,103880.0,0.90570204]
[1737237922224,7e-07,103890.0,103880.0,1.01250384]
[1737237922979,0.01319776,103930.0,103910.0,0.3237]
[1737237923188,0.09079776,103930.0,103920.0,0.19546781]
[1737237923569,0.09079776,103930.0,103920.0,0.20193697]
[1737237923792,0.08535776,103930.0,103920.0,0.30873877]
[1737237924175,0.08535776,103930.0,103920.0,0.20193697]
[1737237924520,0.08535776,103930.0,103920.0,0.24871059]
[1737237927541,0.08535776,103930.0,103920.0,0.26827439]
[1737237928278,0.08535776,103930.0,103920.0,0.29127439]
[1737237928825,0.08535776,103930.0,103920.0,0.30096943]
[1737237931905,0.08535776,103930.0,103920.0,0.29953396]
[1737237932288,0.00775776,103930.0,103920.0,0.40633576]
[1737237932767,0.00775776,103930.0,103920.0,0.55633576]
[1737237933318,0.00775776,103930.0,103920.0,0.58630098]
[1737237933737,0.00775776,103930.0,103920.0,0.55633576]
[1737237933944,0.00775776,103930.0,103920.0,0.58630307]
[1737237934141,0.00775776,103930.0,103920.0,0.55633576]
[1737237934344,0.00775776,103930.0,103920.0,0.58630807]
[1737237934548,0.00775776,103930.0,103920.0,0.55633576]
[1737237936389,0.00775776,103930.0,103920.0,0.58631204]
[1737237937205,0.00775776,103930.0,103920.0,0.55633576]
[1737237937864,0.00775776,103930.0,103920.0,0.68631017]
[1737237938069,0.00775776,103930.0,103920.0,0.68598111]
[1737237938469,0.00775776,103930.0,103920.0,0.76798111]
[1737237938780,0.00775776,103930.0,103920.0,0.86798111]
[1737237942633,0.00775776,103930.0,103920.0,0.78598111]
[1737237943072,0.00775776,103930.0,103920.0,0.68598111]
[1737237944913,0.00775776,103930.0,103920.0,0.58598111]
[1737237945135,0.00775776,103930.0,103920.0,0.68598111]
[1737237947033,0.00775776,103930.0,103920.0,0.6560067]
[1737237948594,0.00775776,103930.0,103920.0,0.68597957]
[1737237949060,0.00775776,103930.0,103920.0,0.68597965]
[1737237949260,0.00775776,103930.0,103920.0,0.58597965]
[1737237949480,0.00775776,103930.0,103920.0,0.4492049]
[1737237949685,0.08665776,103930.0,103920.0,0.5560067]
[1737237949895,0.08665776,103930.0,103920.0,0.6560067]
[1737237950106,0.08665776,103930.0,103920.0,0.6564345]
[1737237952364,0.08665776,103930.0,103920.0,0.68642581]
[1737237955596,0.08665776,103930.0,103920.0,1.01012581]
[1737237958164,0.08665776,103930.0,103920.0,0.91012581]
[1737237958573,0.08665776,103930.0,103920.0,1.01012581]
[1737237958976,0.08665776,103930.0,103920.0,0.91012581]
[1737237959539,0.08665776,103930.0,103920.0,1.01012581]
[1737237960190,0.00775776,103930.0,103920.0,1.01012581]
[1737237961376,0.00775776,103930.0,103920.0,1.21877361]
[1737237963298,0.00775776,103930.0,103920.0,1.18543489]
[1737237964173,0.00775776,103930.0,103920.0,1.29214577]
[1737237967678,0.00775776,103930.0,103920.0,1.84074577]
[1737237968062,0.00775776,103930.0,103920.0,2.0550882]
[1737237968391,0.00775776,103930.0,103920.0,1.94837732]
[1737237970385,5.9e-07,103940.0,103930.0,1.24422888]
[1737237970592,5.9e-07,103940.0,103930.0,1.473461]
[1737237970793,5.9e-07,103940.0,103930.0,1.554761]
[1737237970993,5.9e-07,103940.0,103930.0,1.704761]
[1737237971172,5.9e-07,103940.0,103930.0,1.70943817]
[1737237971376,5.9e-07,103940.0,103930.0,1.9237806]
[1737237971946,0.0796,103960.0,103950.0,0.173]
[1737237972194,0.0796,103960.0,103950.0,0.39843212]
[1737237972404,0.0796,103960.0,103950.0,0.40310452]
[1737237973166,0.08010321,103960.0,103950.0,0.40310452]
[1737237973564,0.08010321,103960.0,103950.0,0.42109437]
[1737237973791,0.08010321,103960.0,103950.0,0.44987814]
[1737237975886,0.08010321,103960.0,103950.0,0.45936772]
[1737237976596,0.08010321,103960.0,103950.0,0.78306772]
[1737237977543,0.08010321,103960.0,103950.0,0.75307641]
[1737237980851,0.08010321,103960.0,103950.0,0.77235328]
[1737237982181,0.08010321,103960.0,103950.0,0.74935328]
[1737237982899,0.12700321,103960.0,103950.0,0.74935328]
[1737237983103,0.12700321,103960.0,103950.0,0.59935328]
[1737237983303,0.12700321,103960.0,103950.0,0.58007641]
[1737237984101,0.23371409,103960.0,103950.0,0.58007641]
[1737237984304,0.23371409,103960.0,103950.0,0.57058683]
[1737237984515,0.32990409,103960.0,103950.0,0.57058683]
[1737237984719,0.23461226,103960.0,103950.0,0.57058683]
[1737237986099,0.12790138,103960.0,103950.0,0.57058683]
[1737237988639,0.12790138,103960.0,103950.0,0.24688683]
[1737237989439,0.19793472,103960.0,103950.0,0.24688683]
[1737237990053,0.29412472,103960.0,103950.0,0.24688683]
[1737237990399,0.19793472,103960.0,103950.0,0.24688683]
[1737237991346,0.12790138,103960.0,103950.0,0.24688683]
[1737237992499,0.3308139,103960.0,103950.0,0.24688683]
[1737237992726,0.2346239,103960.0,103950.0,0.24688683]
[1737237992930,0.12790138,103960.0,103950.0,0.24688683]
[1737237993719,0.33201635,103960.0,103950.0,0.24688683]
[1737237993944,0.3308139,103960.0,103950.0,0.24688683]
[1737237994144,0.3308139,103960.0,103950.0,0.05144602]
[1737237995016,0.41657433,103960.0,103950.0,0.05144602]
[1737237996202,0.54521497,103960.0,103950.0,0.05144602]
[1737237997334,0.43849245,103960.0,103950.0,0.05144602]
[1737237997539,0.54521497,103960.0,103950.0,0.05144602]
[1737238002241,0.55482157,103960.0,103950.0,0.05144602]
[1737238002450,0.65482157,103960.0,103950.0,0.05144602]
[1737238003077,1.04074351,103960.0,103950.0,0.05144602]
[1737238003800,0.95498308,103960.0,103950.0,0.05144602]
[1737238004354,0.95498308,103960.0,103950.0,0.02266225]
[1737238004897,0.94537648,103960.0,103950.0,0.02266225]
[1737238005094,0.84537648,103960.0,103950.0,0.02266225]
[1737238005476,0.93150823,103960.0,103950.0,0.02266225]
[1737238005714,0.3308139,103960.0,103950.0,0.02266225]
[1737238006905,0.93370896,103960.0,103950.0,0.02266225]
[1737238007709,0.71838929,103960.0,103950.0,0.02266225]
[1737238008200,0.71838929,103960.0,103950.0,0.05146016]
[1737238010228,0.54613356,103960.0,103950.0,0.05146016]
[1737238011487,0.50945636,103960.0,103950.0,0.05146016]
[1737238011680,0.50945636,103960.0,103950.0,0.05263081]
[1737238012998,0.51489636,103960.0,103950.0,0.05263081]
[1737238013341,0.58494168,103960.0,103950.0,0.05263081]
[1737238013900,0.51489636,103960.0,103950.0,0.05263081]
[1737238014298,0.57950168,103960.0,103950.0,0.05263081]
[1737238014482,0.58494168,103960.0,103950.0,0.05263081]
[1737238015102,0.58494168,103960.0,103950.0,0.14883081]
[1737238015103,0.50945636,103960.0,103950.0,0.14883081]
[1737238015305,0.46255636,103960.0,103950.0,0.24807162]
[1737238015572,0.46799636,103960.0,103950.0,0.24807162]
[1737238016737,0.2526767,103960.0,103950.0,0.24807162]
[1737238016920,0.00684138,103960.0,103950.0,0.24807162]
[1737238017316,0.0768867,103960.0,103950.0,0.24807162]
[1737238017516,0.00684138,103960.0,103950.0,0.24807162]
[1737238019627,0.00140138,103960.0,103950.0,0.24807162]
[1737238020717,0.00140138,103960.0,103950.0,0.32707162]
[1737238021522,0.00140138,103960.0,103950.0,0.65077162]
[1737238021790,0.00140138,103960.0,103950.0,0.66027088]
[1737238030961,0.00140138,103960.0,103950.0,0.83327088]
[1737238032000,0.00140138,103960.0,103950.0,0.9033162]
[1737238033310,0.00140138,103960.0,103950.0,0.83327088]
[1737238033653,0.00140138,103960.0,103950.0,0.9033162]
[1737238035952,0.00140138,103960.0,103950.0,0.83327088]
[1737238038069,0.00140138,103960.0,103950.0,0.75427088]
[1737238051356,0.00140138,103960.0,103950.0,0.78432001]
[1737238051564,0.00140138,103960.0,103950.0,0.75427088]
[1737238052154,0.00140138,103960.0,103950.0,0.78432607]
[1737238053273,0.08240138,103960.0,103950.0,0.78433191]
[1737238056012,0.1524467,103960.0,103950.0,0.61133191]
[1737238056224,0.15364905,103960.0,103950.0,0.57177162]
[1737238057161,0.24983905,103960.0,103950.0,0.57177162]
[1737238057277,0.2950367,103960.0,103950.0,0.57177162]
[1737238057887,0.38116456,103960.0,103950.0,0.57177162]
[1737238058277,0.38116456,103960.0,103950.0,0.47557162]
[1737238058394,0.38116456,103960.0,103950.0,0.57177162]
[1737238059038,0.41416636,103960.0,103950.0,0.57177162]
[1737238059443,0.51035636,103960.0,103950.0,0.57177162]
[1737238060412,0.51035636,103960.0,103950.0,0.24807162]
[1737238060753,0.41416636,103960.0,103950.0,0.24807162]
[1737238060955,0.51035636,103960.0,103950.0,0.24807162]
[1737238061978,0.68261209,103960.0,103950.0,0.24807162]
[1737238063293,0.58642209,103960.0,103950.0,0.24807162]
[1737238064500,0.41416636,103960.0,103950.0,0.24807162]
[1737238065495,0.51035636,103960.0,103950.0,0.24807162]
[1737238068357,0.58040168,103960.0,103950.0,0.15187162]
[1737238069408,0.96797708,103960.0,103950.0,0.15187162]
[1737238069977,0.89793176,103960.0,103950.0,0.24807162]
[1737238071219,0.68261209,103960.0,103950.0,0.24807162]
[1737238074545,0.39441677,103960.0,103950.0,0.24807162]
[1737238075479,0.00684138,103960.0,103950.0,0.24807162]
[1737238084305,0.00140138,103960.0,103950.0,0.24807162]
[1737238084520,0.00140138,103960.0,103950.0,0.78911694]
[1737238084971,0.00140138,103960.0,103950.0,0.8191483]
[1737238086378,0.00140138,103960.0,103950.0,0.78911694]
[1737238086550,0.00140138,103960.0,103950.0,0.81914336]
[1737238089950,0.00140138,103960.0,103950.0,0.9880887]
[1737238093145,0.08604,103980.0,103970.0,0.096181]
[1737238093146,0.06667609,103980.0,103970.0,0.096181]
[1737238093437,0.06682135,103980.0,103970.0,0.19542181]
[1737238093822,0.06682135,103980.0,103970.0,0.24220957]
[1737238097224,0.06682135,103980.0,103970.0,0.24850579]
[1737238099041,0.06771952,103980.0,103970.0,0.24850579]
[1737238099927,0.06771952,103980.0,103970.0,0.25789731]
[1737238102897,0.00104343,103980.0,103970.0,0.27685663]
[1737238103097,0.00104343,103980.0,103970.0,0.29985663]
[1737238103266,0.00104343,103980.0,103970.0,0.53185663]
[1737238103684,0.00104343,103980.0,103970.0,0.60190195]
[1737238105864,0.00104343,103980.0,103970.0,0.92560195]
[1737238106737,0.00104343,103980.0,103970.0,0.97420195]
[1737238106936,0.00104343,103980.0,103970.0,1.55276754]
[1737238109663,0.00104343,103980.0,103970.0,1.48272222]
[1737238109866,0.00104343,103980.0,103970.0,1.55276754]
[1737238110280,0.00104343,103980.0,103970.0,1.52322975]
[1737238110631,0.00104343,103980.0,103970.0,1.5531854]
[1737238111296,0.00104343,103980.0,103970.0,1.52251278]
[1737238111653,0.00104343,103980.0,103970.0,1.55246655]
[1737238112397,0.00104343,103980.0,103970.0,1.52251278]
[1737238112624,0.00104343,103980.0,103970.0,1.55246586]
[1737238125890,0.00104343,103980.0,103970.0,1.48242054]
[1737238126094,0.00104343,103980.0,103970.0,1.47046586]
[1737238130127,0.00104343,103980.0,103970.0,1.55336586]
[1737238130342,0.00104343,103980.0,103970.0,1.48332054]
[1737238130544,0.00104343,103980.0,103970.0,1.55336586]
[1737238145309,0.00104343,103980.0,103970.0,1.76931704]
[1737238148382,0.00104343,103980.0,103970.0,1.63781704]
[1737238150473,0.00104343,103980.0,103970.0,1.89695846]
[1737238150961,0.00104343,103980.0,103970.0,1.68100728]
[1737238151885,0.00104343,103980.0,103970.0,1.78100728]
[1737238152201,0.00104343,103980.0,103970.0,1.86110728]
[1737238152595,0.0819,103990.0,103980.0,0.119172]
[1737238152769,0.0819,103990.0,103980.0,0.31841121]
[1737238152944,0.12869817,104000.0,103980.0,0.22223921]
[1737238153145,0.12869817,104000.0,103990.0,0.19540381]
[1737238153353,0.12869817,104000.0,103990.0,0.54905689]
[1737238154298,0.12869817,104000.0,103990.0,0.59584465]
[1737238154906,0.12869817,104000.0,103990.0,0.60147529]
[1737238155706,0.00089817,104000.0,103990.0,0.84452061]
[1737238155923,0.00089817,104000.0,103990.0,0.99466593]
[1737238156058,0.00089817,104000.0,103990.0,0.92462061]
[1737238157255,0.00089817,104000.0,103990.0,1.18376203]
[1737238157819,0.00089817,104000.0,103990.0,1.193392]
[1737238158319,0.00089817,104000.0,103990.0,1.15043605]
[1737238159375,0.00089817,104000.0,103990.0,1.71875806]
[1737238173786,0.00089817,104000.0,103990.0,1.81875806]
[1737238174099,0.00089817,104000.0,103990.0,1.91875806]
[1737238179967,0.00089839,104010.0,104000.0,0.40924364]
[1737238180284,0.00089839,104010.0,104000.0,0.47399464]
[1737238181054,0.00089839,104010.0,104000.0,0.5207824]